Cogmind - Beta 17.1 @@@ ROGUE MODE // 2026.09.07 @ 07:45:01 Player: naththebg Result: Destroyed by D-63 Destroyer with Heavy Rocket Launcher Performance ------------- Evolutions (0) 0 Regions Visited (2) 400 Robots Destroyed (31) 155 Value Destroyed (402) 402 Prototype IDs (2) 40 Alien Tech Used (0) 0 Bonus (5800) 5800 TOTAL SCORE: 6797 Bonus ------- Prayed to X0-1V1 5000 Major X0-1V1 Interference 800 Cogmind --------- Core Integrity 0/150 Matter 15/700 Energy 100/100 System Corruption 0% Temperature Warm (123) Movement Core (400) Ox7 Location -10/Mines Parts ------- > --- POWER (1) -------- (None) > --- PROPULSION (1) --- (None) > --- UTILITY (2) ------ Large Storage Unit > --- WEAPON (3) ------- Improved Light Cannon > --- INVENTORY (15) --- Ion Engine Light Ion Engine Light Treads Light Treads Aluminum Leg Aluminum Leg Compact Wheel Compact Wheel Small Storage Unit Experimental Sensor Array Signal Interpreter Improved Light Cannon Grenade Launcher Makeshift Hammer Peak State ------------ > --- POWER ------------ Ion Engine > --- PROPULSION ------- Light Treads > --- UTILITY ---------- Large Storage Unit X0-1V1's Piety Tracker > --- WEAPON ----------- Improved Light Cannon Improved Light Cannon Improved Light Cannon > --- INVENTORY -------- Ion Engine Light Ion Engine Light Treads Light Treads Light Treads Aluminum Leg Aluminum Leg Compact Wheel Compact Wheel Small Storage Unit Experimental Sensor Array Signal Interpreter Light Armor Plating Improved Light Cannon Grenade Launcher [Rating: 24] Favorites ----------- Power Ion Engine Engine Ion Engine Propulsion Light Treads Treads Light Treads Utility Large Storage Unit Device X0-1V1's Piety Tracker Storage Large Storage Unit Processor Visual Processing Unit Hackware Hacking Suite Protection Light Armor Plating Weapon Improved Light Cannon Energy Gun Small Laser Ballistic Gun Assault Rifle Ballistic Cannon Improved Light Cannon Launcher Grenade Launcher Build | -11 -10 -10 ------- Run | Yrd Mat Min Slots Evolved . | . . . Power . | . . . Propulsion . | . . . Utility . | . . . Weapon . | . . . Parts Attached 20 | 7 9 4 Power 1 | 1 . . Engine 1 | 1 . . Core . | . . . Reactor . | . . . Propulsion 3 | 2 . 1 Treads 3 | 2 . 1 Leg . | . . . Wheel . | . . . Hover . | . . . Flight . | . . . Utility 9 | 2 4 3 Device 4 | 1 1 2 Storage 2 | 1 1 . Processor 1 | . 1 . Hackware 1 | . 1 . Protection 1 | . . 1 Artifact . | . . . Weapon 7 | 2 5 . Energy Gun 1 | 1 . . Energy Cannon . | . . . Ballistic Gun 1 | 1 . . Ballistic Cannon 4 | . 4 . Launcher 1 | . 1 . Special Weapon . | . . . Impact Weapon . | . . . Slashing Weapon . | . . . Piercing Weapon . | . . . Special Melee Weapon . | . . . Unidentified Prototypes 2 | . 1 1 Parts Lost 7 | . 1 6 Power 1 | . . 1 Propulsion 2 | . . 2 Utility 2 | . 1 1 Weapon 2 | . . 2 Highest Loss Streak 6 | . 1 6 To Critical Strikes . | . . . Average Backups 11 | 4 10 14 Power 1 | . 1 2 Propulsion 5 | 2 5 6 Utility 2 | . 2 3 Weapon 2 | 1 2 2 Tool/Special . | . . . Unused Backups 10 | . 1 9 Power 2 | . . 2 Propulsion 5 | . . 5 Utility 1 | . . 1 Weapon 2 | . 1 1 Tool/Special . | . . . Average Slot Usage (%) 99 | . 99 98 Engine 14 | . 14 14 Treads 19 | . 22 14 Device 9 | . 8 9 Storage 14 | . 14 14 Hackware 2 | . 3 . Protection 1 | . . 3 Energy Gun 1 | . 2 . Ballistic Gun 4 | . 7 . Ballistic Cannon 27 | . 18 40 Launcher 3 | . 4 1 Peak Build Rating 24 | 7 23 24 Average Rating 16 | 4 15 19 On Entrance 10 | . 7 23 Avg Prop Armor Cover (%) . | . . . Naked Turns . | . . . Heaviest Build 40 | 14 38 40 Greatest Support 40 | 40 40 20 Greatest Overweight (x) 1 | . 1 1 Average Overweight (x) . | . . 1 Largest Inventory Capacity 15 | 8 15 15 Average Capacity 14 | 7 14 15 Most Carried 15 | 8 15 15 Average Carried 11 | 4 11 14 Final Capacity 15 | 8 15 15 Final Carried 14 | 6 14 14 Class Distribution -------------------- 51% | Gunner 39% | Mutant 8% | Tank Dominant Class ---------------- Mutant | -10/Materials Gunner | -10/Mines Resources | -11 -10 -10 ----------- Run | Yrd Mat Min Matter Collected 565 | 300 225 40 Remotely . | . . . Salvage Created 622 | 147 425 50 Parts 56 | 11 38 7 Haulers Intercepted 1 | . 1 . Recyclers Shooed . | . . . Parts Field Recycled . | . . . Retrieved Matter . | . . . Parts Self-Destructed . | . . . Prevented . | . . . Parts Restored . | . . . Kills | -11 -10 -10 ------- Run | Yrd Mat Min Combat Hostiles Destroyed 19 | . 12 7 Guns 2 | . 2 . Cannons 2 | . 2 . AOE 15 | . 8 7 Classes Destroyed 10 | 3 6 1 Worker 1 | 1 . . Builder 1 | . 1 . Tunneler 6 | 3 2 1 Hauler 1 | . 1 . Recycler 3 | 1 2 . Operator 1 | . 1 . Watcher 3 | . 3 . Swarmer 10 | . 7 3 Grunt 5 | . 5 . Assembled 4 | . . 4 Best Kill Streak 5 | 5 3 5 Combat Bots Only 4 | . 3 4 Max Kills in Single Turn 3 | 1 3 2 Gunslinging . | . . . Exploded 3 | . 3 2 Melee . | . . . Uniques/NPCs Destroyed . | . . . Combat | -11 -10 -10 -------- Run | Yrd Mat Min Hostile Shots Fired 65 | . 32 33 Missed 19 | . 12 7 Hits 46 | . 20 26 Projectile 46 | . 20 26 AOE 16 | . . 16 Damage Taken 1080 | . 190 890 Core 200 | . 32 168 Absorbed by Shields . | . . . Ignored by Resistances 5 | . 3 2 Core Remaining (%) 100 | 100 . . Volleys Fired 58 | 10 31 17 Largest 3 | 2 3 3 Hottest 99 | 60 99 99 Shots Fired 103 | 20 55 28 Gun 38 | 20 18 . Cannon 46 | . 25 21 Launcher 19 | . 12 7 Special . | . . . Kinetic 65 | 10 34 21 Thermal 19 | 10 9 . Explosive 19 | . 12 7 Electromagnetic . | . . . Robot Hit Streak 7 | 6 7 4 Robot Miss Streak 4 | 3 4 4 Penetration Max . | . . . Secondary Targets . | . . . Shots Hit Robots 49 | 12 24 13 Core Hits 56 | 6 31 19 Critical Kills . | . . . Critical Parts Destroyed . | . . . Critical Strikes 3 | . 2 1 Blast 3 | . 2 1 Melee Attacks . | . . . Impact . | . . . Slashing . | . . . Piercing . | . . . Sneak Attacks . | . . . Combat Hostiles . | . . . Follow-up Attacks . | . . . Damage Inflicted 1975 | 145 1080 750 Guns 277 | 145 132 . Cannons 480 | . 260 220 Explosions 1215 | . 685 530 Melee . | . . . Ramming 3 | . 3 . Kinetic 660 | 90 350 220 Thermal 97 | 55 42 . Explosive 1215 | . 685 530 Electromagnetic . | . . . Impact . | . . . Slashing . | . . . Piercing . | . . . Highest Corruption . | . . . Average Corruption . | . . . Corruption Purged . | . . . Corruption Blocked . | . . . Overload Shots . | . . . Overflow Damage 71 | . 43 28 Projectiles 16 | . 13 3 Explosions 55 | . 30 25 Melee . | . . . Knockbacks 4 | . . 4 Impact . | . . . Kinetic 4 | . . 4 Secondary . | . . . Self-Inflicted Damage 3 | . 3 . Shots 1 | . 1 . Rammed 2 | . 2 . Targets Rammed 2 | . 2 . Kicked . | . . . Crushed . | . . . Highest Temperature 153 | . 90 153 Average Temperature 53 | . 25 102 Received Heat Transfer 62 | . 42 20 Siege Activations . | . . . Martial Activations . | . . . Shielding Activations . | . . . Robots Disrupted . | . . . Combat Hostiles . | . . . Robots Corrupted . | . . . Combat Hostiles . | . . . Parts Fried . | . . . Impact Corruptions . | . . . Robots Melted . | . . . Combat Hostiles . | . . . Parts Melted . | . . . Heat Transferred 225 | 125 100 . Parts Sabotaged . | . . . Parts Stolen . | . . . Parts Stripped . | . . . Power Chain Reactions . | . . . Alert | -11 -10 -10 ------- Run | Yrd Mat Min Maximum Alert Level . | . . . Low Security (%) 100 | 100 100 100 Level 1 . | . . . Level 2 . | . . . Level 3 . | . . . Level 4 . | . . . Level 5 . | . . . High Security . | . . . Max Security . | . . . Peak Influence 135 | 10 135 105 Initial 27 | . 3 27 Average 35 | 2 50 17 Influence Increases 588 | 25 460 103 Destroy 0b10 Robot/C 300 | . 240 60 Destroy 0b10 Robot/NC 80 | 25 50 5 Destroy Leader 68 | . 58 10 Successful Hack 19 | . 19 . Select Force Hacks 60 | . 60 . Destroy Structure 61 | . 33 28 Influence Decreases 587 | 20 393 174 Entered New Map 47 | . 2 45 Time Decay 520 | 20 381 119 Lost Part 20 | . 10 10 Squads Dispatched 3 | . 3 . Investigation 2 | . 2 . Extermination . | . . . Reinforcement 1 | . 1 . Assault . | . . . Garrison . | . . . Intercept . | . . . Searches Triggered . | . . . Construction Impeded . | . . . Haulers Reinforced . | . . . Active Scanning Responses . | . . . Cargo Convoy Interrupts . | . . . Stealth | -11 -10 -10 --------- Run | Yrd Mat Min Distress Signals . | . . . Communications Jammed . | . . . Distress Signals . | . . . Times Spotted 33 | . 16 17 Peak Tracking Total 19 | . 4 19 Tactical Retreats 1 | . . 1 Traps | -11 -10 -10 ------- Run | Yrd Mat Min Traps Triggered 1 | . 1 . Indirectly . | . . . Trap Hack Attempts . | . . . Triggered . | . . . Disarmed . | . . . Reprogrammed . | . . . Reused . | . . . Traps Extracted . | . . . Installed . | . . . Triggered . | . . . Machines | -11 -10 -10 ---------- Run | Yrd Mat Min Machines Disabled . | . . . Max in Single Turn . | . . . Machines Repaired . | . . . Machines Dismantled . | . . . Machines Sabotaged . | . . . Overloaded Fab Kills . | . . . Hacking | -11 -10 -10 --------- Run | Yrd Mat Min Machines Accessed 8 | . 8 . Terminals 6 | . 6 . Fabricators . | . . . Repair Stations . | . . . Recycling Units 2 | . 2 . Scanalyzers . | . . . Garrison Access . | . . . Total Hacks 15 | . 15 . Successful 9 | . 9 . Failed 6 | . 6 . Catastrophic 1 | . 1 . Database Lockouts . | . . . Manual 16 | . 16 . Terminals 11 | . 11 . Fabricators . | . . . Repair Stations . | . . . Recycling Units 4 | . 4 . Scanalyzers . | . . . Garrison Access . | . . . Terminal Hacks . | . . . Fabricator Hacks . | . . . Repair Station Hacks . | . . . Recycling Unit Hacks . | . . . Scanalyzer . | . . . Garrison Access Hacks . | . . . Unauthorized Hacks 9 | . 9 . Terminals 7 | . 7 . Operators 1 | . 1 . Skim 6 | . 6 . Fabricators . | . . . Repair Stations . | . . . Recycling Units 2 | . 2 . Tunnel 2 | . 2 . Scanalyzers . | . . . Garrison Access . | . . . Data Cores Recovered . | . . . Used . | . . . Hacking Detections 4 | . 4 . Full Trace Events . | . . . Feedback Events . | . . . Feedback Blocked . | . . . Robot Schematics Acquired . | . . . Robots Built . | . . . Authchips . | . . . Time . | . . . Total Robot Build Rating . | . . . Part Schematics Acquired . | . . . Parts Built . | . . . Authchips . | . . . Time . | . . . Total Part Build Rating . | . . . Part Studies Acquired . | . . . Parts Repaired . | . . . Time . | . . . Parts Recycled . | . . . Recycled Matter . | . . . Retrieved Matter . | . . . Retrieved Components . | . . . Parts Scanalyzed . | . . . Part Schematics Acquired . | . . . Parts Damaged . | . . . Bothacking | -11 -10 -10 ------------ Run | Yrd Mat Min Used RIF Installer . | . . . Robots Hacked . | . . . Non-combat . | . . . Combat . | . . . Robot Hacks Applied . | . . . Relay Couplers Released . | . . . Fabnet Peak Effective % . | . . . Robots Rewired . | . . . Allies Hacked . | . . . Hacks Repelled . | . . . Allies | -11 -10 -10 -------- Run | Yrd Mat Min Total Allies . | . . . Largest Group . | . . . Highest-Rated Group . | . . . Highest-Rated Ally . | . . . Total Orders . | . . . Ally Attacks . | . . . Total Damage . | . . . Kills . | . . . Allies Corrupted . | . . . Allies Melted . | . . . X0-1V1 Amusement Gains 37 | . 17 20 Average Entertainment 9 | . 10 6 Good Acts 2 | . 2 . Bad Acts 4 | . 1 3 Intel | -11 -10 -10 ------- Run | Yrd Mat Min Active Infowar (turns) 261 | 21 239 1 Optics 119 | . 119 . Sensors 1 | . . 1 Seismic 141 | 21 120 . Robot Analysis Total . | . . . Derelict Logs Recovered 1 | . . 1 Drone Launches . | . . . Drone Recoveries . | . . . Exploration | -11 -10 -10 ------------- Run | Yrd Mat Min Turns Passed 1887 | 115 1075 697 Spaces Moved 780 | 44 472 264 Core 2 | 2 . . Treads 778 | 42 472 264 Legs . | . . . Wheels . | . . . Hover . | . . . Flight . | . . . Fastest Speed 50 | 50 160 240 Average Speed 200 | 155 183 240 Slowest Speed 240 | 160 240 240 Overloaded Moves . | . . . Propulsion Burnouts . | . . . Robots Hopped . | . . . Potential Cave-ins . | . . . Cave-ins Triggered . | . . . Exploration Rate (%) 51 | 3 94 58 Regions Visited 2 Branch Regions 1 Pre-discovered Areas 4 | . 3 1 Known Exits Taken . | . . . Unknown Exits Taken 2 | 1 1 . Scrap Searched 1 | . . 1 Spaces Dug . | . . . Terrain Destroyed 65 | . 30 35 Melee . | . . . Projectile 5 | . 1 4 AOE 60 | . 29 31 Terrain Rammed . | . . . Walls Destroyed . | . . . Machines Disabled . | . . . Actions | -11 -10 -10 --------- Run | Yrd Mat Min Total 1002 | 68 632 302 Wait 107 | . 99 8 Move 778 | 43 471 264 Hop . | . . . Pick Up 22 | 8 12 2 Fast Attach 9 | 5 3 1 Attach 9 | 2 4 3 Detach 2 | . 1 1 Swap 8 | . 4 4 Drop 7 | . 5 2 Fire 58 | 10 31 17 Melee . | . . . Ram . | . . . Kick . | . . . Crush 2 | . 2 . Escape Stasis . | . . . Rewire . | . . . Trap . | . . . Miscellaneous . | . . . Route ------- -11/Scrapyard -10/Materials (discovered 5 exits: *Mat x3 / [*Min] / [*Sub]) -10/Mines (discovered 2 exits: *Mat / [*Sub]) History --------- Turn | Location | Event 42 | -11/Scrapyard | Discovered new exit (range 16) 116 | -11/Scrapyard | Entered Materials 306 | -10/Materials | Build established: Mutant 315 | -10/Materials | Discovered new exit (range 14) 416 | -10/Materials | Discovered new exit (range 5) 429 | -10/Materials | Prayed at D.C.S.S. Altar Unit 532 | -10/Materials | Discovered new exit (range 16) 639 | -10/Materials | Discovered new exit (range 10) 670 | -10/Materials | Identified exit to Materials 712 | -10/Materials | TH resistance permanently improved by X0-1V1 (+10%; -100 max core) 753 | -10/Materials | X0-1V1 mutated your Propulsion slot to Weapon slot 770 | -10/Materials | Learned location of 1 exit from Recycling 807 | -10/Materials | Learned location of 2 exits from Materials 834 | -10/Materials | Learned location of 2 exits from Subcaves 913 | -10/Materials | Loaded intel: 2 recycling unit locations 1037 | -10/Materials | Build established: Gunner 1191 | -10/Materials | Entered Mines 1297 | -10/Mines | Deemed a non-threat by the Exiles lab entrance 1350 | -10/Mines | Discovered exit to Materials (range 10) 1383 | -10/Mines | Learned location of Zion (-7) 1383 | -10/Mines | Discovered new exit (range 6) 1609 | -10/Mines | Found a damaged Exp. Sensor Array with a note attached 1635 | -10/Mines | Found Prototype Device 1642 | -10/Mines | Identified Exp. Sensor Array 1697 | -10/Mines | A weapon hastily lodged in a ceiling crevice suddenly fell to the ground 1801 | -10/Mines | Assembled infested the area 1806 | -10/Mines | Assisted by a Guerilla fighting off Assembled 1870 | -10/Mines | X0-1V1 upgraded hostiles (x2) 1879 | -10/Mines | Core integrity fell below 50% 1887 | -10/Mines | Core integrity fell below 20% 1888 | -10/Mines | Destroyed by D-63 Destroyer with Heavy Rocket Launcher Last Messages --------------- 01865_ The unstable cave ceiling collapses. 01869_ Lgt. Armor Plating destroyed. 01870_ X0-1V1 tips the scales in a new dimension. D-53 Grenadier reshaped into more powerful Demolisher. as-75473 reshaped into more powerful Assembled. 01870_ as-75473 destroyed. 01871_ The unstable cave ceiling collapses. 01871_ Lgt. Treads destroyed. 01873_ D-63 Destroyer knocked back. 01874_ Imp. Light Cannon destroyed. 01876_ D-63 Destroyer knocked back. 01878_ The unstable cave ceiling collapses. 01882_ Imp. Light Cannon destroyed. 01882_ K-01 Serf destroyed. 01884_ Lgt. Treads destroyed. 01884_ Ion Engine destroyed. 01886_ The unstable cave ceiling collapses. 01886_ as-89226 destroyed. 01886_ as-47482 destroyed. 01888_ X0-1V1 bursts into laughter! Map ----- +----------------------------------------------------+ | | | | | | | | | | | | | | | | | | | ?????????????????????????????????????????????????? | | ?????????????????????????????????????????????????? | | ?????????????????????????????######??????????????? | | ?????????????????????????????# ###????????????? | | ?????????????????????????????# ######???????? | | ?????????????????????????????# #???????# | | ?????????????????????????????# ## ##??????# | | ??????????????#??????????????# ### ##?????# | | ????????????? #%?????????????# ### ##????# | | ???????# %;;##########??### #### #????# | | ????? %%%%! ###??# ####% #????# | | ????? ###;; ### #### #?## #????# | | ?????????????????## #??## #????# | | ?????????????????# ##??## ##???# | | ????????????????## ####???# ##### | | ???????????????## % ##??????# | | ??????????????## % @ * #???????# | | ??????????????# #???????## ### ## | | ??????????????# #????????####?####? | | ??????????????## #???????????####### | | ???????????????## ##???????????# | | ???????????###??## ##????????????# | | ???????????# ## #### /#????????????????#### | | ??????????## % % #?# #???????????????????# | | ??????????# %d% #?# #???????????????????# | | ????????# % ##?# #???????????????????? | | ???? #??# ???????????????????? | | ??? ##??# !???????????????????? | | ???###### ####??? ??????????????????? | | ????????# ##?????? #??????????????????? | | ????????# ##??????? ##??????????????????? | | ????????### ????????? #???????????????????? | | ??????????# = ????????? #???????????????????? | | ??????????### !%#????????? #???????????????????? | | ????????????## *?????????? ????????????????????? | | ?????????????# $?????????? ????????????????????? | | ?????????????# ?????????? #????????????????????? | | ?????????????# ?????????????????????????????????? | | ?????????????# ??????????????????????????????????? | | ?????????????????????????????????????????????????? | | ?????????????????????????????????????????????????# | +----------------------------------------------------+ Best States ------------- Heat Dissipation 25 Energy Generation 10 Energy Capacity 250 Matter Stores 300 Matter Capacity 700 Sight Range 18 Terrain Scan Density 10 Armor Coverage 150 Resistance: TH 10 Evasion (%) 40 Recoil Reduction 2 Offensive Hacking 10 Item Schematics ----------------- None Robot Schematics ------------------ None Fabricated ------------ Nothing Repaired ---------- Nothing Studied --------- None Alien Tech Used ----------------- None Achievements -------------- None Challenges ------------ None Game ------ Seed SupercompositeChromaticLog Manual? 0 Play Time 00:11:31 Cumulative 632.3 hours Start 2026.09.07 @ 07:36:20 End 2026.09.07 @ 07:45:01 Sessions 1 Manual Loads 0 Difficulty Rogue Special Mode None Game No. 344 Rogue 344 Adventurer 0 Explorer 0 Win Type - Total 20 Types 10/1/3/1/1/0/1/1/0/2 Lore% 86 Gallery% 85 Achievement% 77 Wizard Run 0 Options --------- Layout 0 ASCII 0 Keyboard 0 Movement Mouse Keybinds 0 Fullscreen 1 Font 18/SmallcapsGlow Map View 76x50 Zoom Use 0% Tactical HUD 1 Map Filters NONE Filters NONE Steam 1 RUN: 6c71d7e5-7280-4fe6-b753-a4a833dba0ef